fUSD/lending_fUSD_20240609
["ID","MTS","AMOUNT","RATE_DAILY","PERIOD"]
[328881266,1717950644480,-1357.7596459,0.000288,2]
[328881268,1717950644492,-11260.56224255,0.000288,2]
[328881269,1717950644504,-1775.30130806,0.000288,2]
[328881286,1717950646819,-226.67450997,0.00021846,2]
[328881287,1717950646830,-198.96,0.00028795,2]
[328881288,1717950646841,-759.60788467,0.00028799,2]
[328881289,1717950646851,-2397.00760536,0.000288,2]
[328881290,1717950647329,-477.47355398,0.000288,2]
[328881291,1717950647391,-3574.65,0.000288,2]
[328881292,1717950647403,-30710.40352601,0.000288,2]
[328881295,1717950823849,21098.00316282,0.00014,2]
[328881296,1717950823884,485751.09700365,0.00014,2]
[328881297,1717950845268,51542.89218589,0.000118,2]
[328881298,1717950852068,14841.96076462,0.00011,2]
[328881299,1717950901961,299.71922881,0.00011,2]
[328881300,1717950902566,20268.82653709,0.00011,2]
[328881301,1717950907741,180.67449119,0.00011,2]
[328881302,1717950910222,155.0,0.00011,2]
[328881303,1717950915131,547840.1847803,0.00011,2]
[328881304,1717950917095,24660.54978743,0.00011,2]
[328881305,1717950918482,5042.04070814,0.00011,2]
[328881306,1717950921671,180.67449119,0.00011,2]
[328881307,1717950923358,155.0,0.00011,2]
[328881308,1717950923897,299.71922881,0.00011,2]
[328881309,1717950928145,155.0,0.00011,2]
[328881310,1717950929082,547840.1847803,0.00011,2]
[328881311,1717950930621,19777.11820586,0.00011,2]
[328881312,1717950933052,24660.54978743,0.00011,2]
[328881313,1717950937324,155.0,0.00011,2]
[328881314,1717950939690,180.67449119,0.00011,2]
[328881315,1717950944183,299.71922881,0.00011,2]
[328881316,1717950946561,19753.4709435,0.00011,2]
[328881317,1717950951057,498637.92890942,0.00011,2]
[328881318,1717950953081,24660.54978743,0.00011,2]
[328881319,1717950955688,180.67449119,0.00011,2]
[328881320,1717950961318,242.26733657,0.00011,2]
[328881321,1717950961893,299.71922881,0.00011,2]
[328881322,1717950969061,24660.54978743,0.00011,2]
[328881323,1717950975680,180.6194043,0.00011,2]
[328881324,1717950981886,296.74397215,0.00011,2]
[328881325,1717950985222,24660.54978743,0.00011,2]
[328881326,1717950996605,4016.64097508,0.0001,2]
[328881327,1717950997592,1398.42181804,0.00013,2]
[328881328,1717951005053,6825.42638783,0.00011,2]
[328881330,1717951214385,155.0,0.00011,2]
[328881331,1717951232395,155.00000109,0.00011,2]
[328881332,1717951452197,155.0,0.00011,2]
[328881333,1717951466197,155.13656754,0.00011,2]
[328881334,1717951769380,-217.40040456,0.00015729,2]
[328881335,1717951769406,-155.0,0.00015729,2]
[328881336,1717951769434,-4614.50555793,0.0001573,2]
[328881337,1717951769458,-658.95366883,0.00015731,2]
[328881338,1717951769489,-155.0,0.00015731,2]
[328881339,1717951769514,-223.45418017,0.00015733,2]
[328881340,1717951769540,-150.0,0.00017233,2]
[328881341,1717951769565,-2269.2443412,0.00017258,2]
[328881346,1717951832231,-155.0,0.00015728,2]
[328881347,1717951832242,-349.69421276,0.00017258,2]
[328881348,1717951832638,-168.81900691,0.00017258,2]
[328881349,1717951832648,-226.67450997,0.000201,2]
[328881350,1717951832658,-486.84109834,0.000216,2]
[328881351,1717951832669,-735.06296937,0.000216,2]
[328881352,1717951832694,-616.59989011,0.000216,2]
[328881353,1717951832706,-599.46000008,0.000216,2]
[328881354,1717951832807,-113.61469185,0.000216,2]
[328881355,1717951832817,-706.0,0.000224,5]
[328881356,1717951832826,-1266.92,0.000224,8]
[328881357,1717951832836,-334.91,0.00023735,2]
[328881358,1717951832845,-185.68,0.00024384,2]
[328881359,1717951832855,-14470.49920023,0.00025,2]
[328881360,1717951832865,-1250.0,0.00025,2]
[328881361,1717951832874,-155.0,0.00025252,2]
[328881362,1717951832883,-678.79,0.00025253,2]
[328881363,1717951832893,-250.0,0.00025262,2]
[328881364,1717951832905,-187.88,0.0002545,2]
[328881365,1717951832915,-402.02655651,0.000255,2]
[328881366,1717951832925,-1000.0,0.00025544,2]
[328881367,1717951832934,-344.98,0.00025575,2]
[328881368,1717951832943,-250.0,0.00025583,2]
[328881369,1717951832954,-175.48,0.00025605,2]
[328881370,1717951832964,-200.0,0.00025655,2]
[328881371,1717951832973,-250.0,0.0002572,2]
[328881372,1717951832984,-151.0,0.00025916,5]
[328881373,1717951832994,-334.91,0.00025999,2]
[328881374,1717951833004,-17822.51183239,0.00026006,2]
[328881375,1717951833016,-977.03499773,0.00026006,2]
[328881376,1717951833028,-277.50880542,0.00026006,2]
[328881377,1717951833041,-1432.60164,0.00026006,2]
[328881378,1717951833058,-305.91396337,0.00026006,2]
[328881379,1717951833069,-423.32484874,0.00026006,2]
[328881380,1717951833081,-613.91814751,0.00026006,2]
[328881381,1717951833094,-939.82724979,0.00026006,2]
[328881382,1717951833106,-372.15183092,0.00026006,2]
[328881383,1717951833128,-421.55839924,0.00026006,2]
[328881407,1717951838094,-313.64828489,0.00026006,2]
[328881408,1717951838104,-200.0,0.00026009,2]
[328881409,1717951838114,-155.99969061,0.00026022,2]
[328881410,1717951838123,-154.46740011,0.00026194,2]
[328881411,1717951838133,-337.64,0.00026273,2]
[328881412,1717951838143,-155.99969061,0.00026436,2]
[328881413,1717951838153,-170.9470932,0.00026517,2]
[328881414,1717951838162,-154.56656756,0.00026523,2]
[328881415,1717951838172,-2056.66757126,0.00026699,2]
[328881416,1717951838183,-1234.0,0.000267,2]
[328881417,1717951838192,-166.74070701,0.00026709,2]
[328881418,1717951838202,-155.99969061,0.00026787,2]
[328881419,1717951838211,-154.83037785,0.00026844,2]
[328881420,1717951838221,-155.12011439,0.0002687,2]
[328881421,1717951838230,-151.0,0.00026937,7]
[328881422,1717951838239,-15504.09844362,0.00027,2]
[328881423,1717951838249,-1300.0,0.00027,2]
[328881424,1717951838260,-150.0,0.00027,2]
[328881425,1717951838434,-4029.88662948,0.00027,2]
[328881426,1717951838449,-155.0,0.00027,2]
[328881427,1717951838458,-200.0,0.00027,2]
[328881428,1717951838468,-155.99969061,0.00027015,2]
[328881429,1717951838480,-151.797681,0.00027089,2]
[328881430,1717951838491,-165.03121418,0.00027356,2]
[328881431,1717951838501,-200.0,0.00027397,7]
[328881432,1717951838516,-150.0,0.00027397,2]
[328881433,1717951838527,-189.71863603,0.000275,2]
[328881434,1717951838537,-155.99969061,0.00027776,2]
[328881435,1717951838547,-155.99969061,0.00027855,2]
[328881436,1717951838557,-151.0,0.00027958,7]
[328881437,1717951838567,-678.79,0.00027993,2]
[328881438,1717951838577,-4564.11086622,0.00028002,2]
[328881439,1717951838586,-154.98577542,0.00028097,2]
[328881440,1717951838597,-20000.0,0.000281,4]
[328881441,1717951838606,-150.0,0.00028118,2]
[328881442,1717951838616,-154.98577542,0.00028125,2]
[328881443,1717951838625,-173.76,0.0002818,2]
[328881444,1717951838634,-334.91,0.00028263,2]
[328881445,1717951838644,-153.17,0.00028356,2]
[328881446,1717951838654,-239.42,0.00028356,2]
[328881447,1717951838665,-150.0,0.00028356,2]
[328881448,1717951838675,-724.92,0.00028356,2]
[328881449,1717951838686,-422.39,0.00028356,2]
[328881450,1717951838698,-179.98,0.00028356,2]
[328881451,1717951838708,-155.99969061,0.00028459,2]
[328881452,1717951838718,-155.0,0.00028545,4]
[328881453,1717951838728,-200.0,0.00028599,2]
[328881454,1717951838738,-1000.0,0.000286,2]
[328881455,1717951838748,-212.29081246,0.000286,2]
[328881456,1717951838759,-192.66109184,0.000286,2]
[328881457,1717951838770,-2500.0,0.000286,2]
[328881458,1717951838779,-352.56735905,0.000286,2]
[328881459,1717951838789,-155.99969061,0.0002862,2]
[328881460,1717951838799,-212.29081238,0.00028667,2]
[328881461,1717951838809,-352.56735897,0.00028667,2]
[328881462,1717951838820,-954.54838896,0.00028672,2]
[328881463,1717951838831,-500.0,0.00028678,2]
[328881464,1717951838840,-200.0,0.00028678,2]
[328881465,1717951838850,-217.18638029,0.00028699,2]
[328881466,1717951838859,-36593.71048022,0.000287,2]
[328881467,1717951838886,-3637.20517682,0.000287,2]
[328881468,1717951838902,-43977.39344296,0.000287,2]
[328881469,1717951838911,-1000.0,0.000287,2]
[328881470,1717951838921,-15829.75369924,0.000287,2]
[328881472,1717951838933,-7787.189,0.000287,2]
[328881485,1717951843118,-266.10450733,0.000279,2]
[328881486,1717951843130,-200.54,0.00028695,2]
[328881487,1717951843141,-6889.07853767,0.000287,2]
[328881488,1717951843210,-1164.01677265,0.000287,2]
[328881489,1717951843355,-427.18428536,0.000287,2]
[328881490,1717951843367,-537.88,0.000287,2]
[328881491,1717951843380,-768.44720034,0.000287,2]
[328881492,1717951843570,-463.51367634,0.000287,2]
[328881493,1717951843716,-707.3898016,0.000287,2]
[328881501,1717951844192,-11784.06453866,0.000287,2]
[328881502,1717951844529,-1740.23151455,0.000287,2]
[328881508,1717951846695,-1254.95593335,0.000274,2]
[328881509,1717951847046,-70.04406665,0.000274,2]
[328881510,1717951847056,-63132.14947359,0.000287,2]
[328881511,1717951847067,-315.45655483,0.000287,2]
[328881512,1717951847077,-187.56162543,0.000287,2]
[328881513,1717951847087,-212.29081238,0.00028733,2]
[328881514,1717951847096,-352.56735897,0.00028733,2]
[328881515,1717951847107,-1000.0,0.00028737,2]
[328881516,1717951847117,-500.0,0.00028799,2]
[328881517,1717951847126,-178.36989086,0.00028799,2]
[328881518,1717951847136,-347.90652499,0.00028799,2]
[328881519,1717951847146,-150.0,0.00028799,2]
[328881520,1717951847156,-15199.53363774,0.000288,2]
[328881529,1717952969130,-162.61492779,0.00015527,2]
[328881530,1717952969153,-1236.2806,0.00015628,2]
[328881531,1717952969176,-1203.92957355,0.00017264,2]
[328881532,1717952969202,-1203.92957355,0.00019,2]
[328881533,1717952969226,-1138.08379987,0.000191,2]
[328881544,1717953032182,-259.94301548,0.00019,2]
[328881545,1717953032364,-943.98655809,0.00019,2]
[328881546,1717953032376,-359.57147322,0.000191,2]
[328881547,1717953032535,-411.34472691,0.000191,2]
[328881548,1717953032546,-584.0,0.000191,2]
[328881549,1717953032556,-195.26,0.00024384,2]
[328881550,1717953032566,-301.25,0.00024579,2]
[328881551,1717953032578,-14470.49920023,0.00025,2]
[328881552,1717953032589,-1250.0,0.00025,2]
[328881553,1717953032599,-155.0,0.00025,2]
[328881554,1717953032610,-166.74070703,0.00026127,2]
[328881555,1717953032620,-250.0,0.0002627,2]
[328881556,1717953032631,-693.57,0.00026293,2]
[328881557,1717953032641,-250.0,0.00026423,2]
[328881558,1717953032651,-250.0,0.00026431,2]
[328881559,1717953032661,-152.0,0.00026528,3]
[328881560,1717953032671,-187.88,0.00026555,2]
[328881561,1717953032682,-156.02019917,0.00026603,2]
[328881562,1717953032692,-301.98,0.00026618,2]
[328881563,1717953032865,-225.59,0.00026643,2]
[328881564,1717953032877,-281.36,0.00026687,2]
[328881565,1717953032888,-301.25,0.00026842,2]
[328881566,1717953032902,-197.1,0.00026995,2]
[328881567,1717953032912,-155.0,0.0002702,2]
[328881568,1717953032922,-1000.0,0.00027021,2]
[328881569,1717953032933,-203.57,0.00027286,2]
[328881570,1717953032942,-155.99969062,0.00027318,2]
[328881571,1717953032952,-150.0,0.00027397,2]
[328881572,1717953032963,-154.56656756,0.0002763,2]
[328881573,1717953032973,-154.98577542,0.00027648,2]
[328881574,1717953032984,-203.81,0.00027781,2]
[328881575,1717953032995,-155.99969063,0.00028024,2]
[328881576,1717953033005,-487.15,0.00028082,2]
[328881577,1717953033014,-500.0,0.000281,10]
[328881578,1717953033024,-150.0,0.00028118,2]
[328881579,1717953033035,-1100.0,0.000282,10]
[328881581,1717953033045,-1600.0,0.000283,10]
[328881583,1717953033055,-2200.0,0.000284,10]
[328881584,1717953033065,-500.0,0.000285,2]
[328881586,1717953033074,-2700.0,0.000285,10]
[328881588,1717953033084,-500.0,0.0002857,2]
[328881590,1717953033095,-200.0,0.0002857,2]
[328881591,1717953033104,-500.0,0.000286,2]
[328881593,1717953033114,-500.0,0.000286,10]
[328881595,1717953033126,-2033.16,0.000287,6]
[328881597,1717953033136,-1057.39974911,0.000287,2]
[328881598,1717953033146,-246.79715136,0.000287,2]
[328881600,1717953033157,-500.0,0.000287,10]
[328881602,1717953033168,-246.79715127,0.00028756,2]
[328881604,1717953033178,-1057.39974904,0.00028771,2]
[328881606,1717953033188,-414649.19858458,0.000288,2]
[328881607,1717953033211,-2657.2665935,0.000288,2]
[328881608,1717953033237,-1075.9549519,0.000288,2]
[328881611,1717953038300,-692.56,0.0002879,3]
[328881612,1717953038311,-203.66,0.00028795,2]
[328881613,1717953038323,-170361.20092479,0.000288,2]
[328881614,1717953038336,-1920.38628,0.000288,2]
[328881615,1717953038350,-17461.640673,0.000288,2]
[328881616,1717953038371,-2005.99539011,0.000288,2]
[328881617,1717953038385,-457.06042095,0.000288,2]
[328881618,1717953038504,-312.84687233,0.000288,2]
[328881619,1717953038516,-358.005,0.000288,2]
[328881620,1717953038991,-3378.6,0.000288,2]
[328881622,1717953042273,-11909.57344283,0.000288,2]
[328881623,1717953042436,-7794.63307833,0.000288,2]
[328881624,1717953042447,-446.97972469,0.000288,2]
[328881625,1717953042458,-169.14140858,0.000288,2]
[328881626,1717953042473,-1201.84707449,0.000288,2]
[328881627,1717953042484,-603.43084792,0.000288,2]
[328881628,1717953042498,-678.86232923,0.000288,2]
[328881629,1717953042511,-3477.18447044,0.000288,2]
[328881630,1717953042526,-1362.61061232,0.000288,2]
[328881631,1717953042536,-362.72006922,0.000288,2]
[328881632,1717953042548,-202.3053495,0.000288,2]
[328881633,1717953042558,-160.0,0.000288,2]
[328881634,1717953042570,-4012.9434206,0.000288,2]
[328881635,1717953042580,-2000.0,0.000288,2]
[328881636,1717953042592,-200.0,0.000288,2]
[328881637,1717953042603,-345.0,0.000288,2]
[328881638,1717953042614,-1078.87432,0.000288,2]
[328881639,1717953042625,-500.0,0.000288,10]
[328881640,1717953042637,-246.79715127,0.00028811,2]
[328881641,1717953042648,-150.0,0.00028839,2]
[328881642,1717953042658,-1057.39974904,0.00028843,2]
[328881643,1717953042669,-150.0,0.00028856,2]
[328881644,1717953042680,-150.0,0.00028862,2]
[328881645,1717953042691,-152.0,0.00028866,4]
[328881646,1717953042702,-246.79715127,0.00028867,2]
[328881647,1717953042714,-226.65406987,0.00028877,30]
[328881648,1717953042725,-155.12011439,0.00028884,2]
[328881649,1717953042736,-150.0,0.00028889,2]
[328881650,1717953042747,-500.0,0.000289,10]
[328881651,1717953042758,-526.56636703,0.000289,2]
[328881652,1717953042781,-487.57363297,0.000289,2]
[328881653,1717953042792,-150.0,0.00028914,2]
[328881654,1717953042803,-557.41745259,0.00028914,2]
[328881657,1717953044762,-499.98229645,0.00028914,2]
[328881658,1717953044774,-69.36770355,0.00028919,2]
[328881659,1717953044815,-80.63229645,0.00028919,2]
[328881660,1717953044827,-246.79715127,0.00028922,2]
[328881661,1717953044839,-150.0,0.00028935,2]
[328881662,1717953044850,-190.026319,0.00028937,2]
[328881663,1717953044861,-30.62256688,0.00028937,2]
[328881664,1717953045084,-478.44759812,0.00028937,2]
[328881665,1717953045096,-180.880195,0.00028937,2]
[328881666,1717953045109,-182.375534,0.00028937,2]
[328881667,1717953045120,-2154.856465,0.00028937,2]
[328881668,1717953045131,-1839.429719,0.00028937,2]
[328881669,1717953045142,-185.239224,0.00028937,2]
[328881670,1717953045153,-217.134621,0.00028937,2]
[328881671,1717953045164,-2460.42645,0.00028937,2]
[328881672,1717953045174,-294.026462,0.00028937,2]
[328881673,1717953045184,-430.971293,0.00028937,2]
[328881674,1717953045195,-367.885943,0.00028937,2]
[328881675,1717953045207,-492.08529,0.00028937,2]
[328881676,1717953045218,-169.690056,0.00028937,2]
[328881677,1717953045229,-639.777427,0.00028937,2]
[328881678,1717953045239,-589.527706,0.00028937,2]
[328881679,1717953045250,-228.50252821,0.00028939,2]
[328881681,1717953045260,-150.0,0.0002894,2]
[328881683,1717953045271,-150.0,0.00028944,2]
[328881685,1717953045283,-150.0,0.00028948,2]
[328881687,1717953045293,-150.0,0.0002896,2]
[328881689,1717953045303,-500.0,0.00028962,15]
[328881690,1717953045314,-230.0,0.0002897,2]
[328881691,1717953045324,-150.0,0.00028973,2]
[328881692,1717953045335,-150.0,0.00028976,2]
[328881693,1717953045345,-246.79715127,0.00028978,2]
[328881694,1717953045356,-151.0,0.00028983,7]
[328881695,1717953045366,-1057.39974904,0.00028986,2]
[328881696,1717953045377,-150.0,0.00028986,2]
[328881697,1717953045389,-150.0,0.00028994,2]
[328881698,1717953045400,-150.0,0.00028995,2]
[328881699,1717953045411,-33345.37173059,0.00029,2]
[328881700,1717953045422,-311.05432168,0.00029,2]
[328881701,1717953045433,-16736.22720224,0.00029,2]
[328881755,1717953046684,-7674.27078051,0.00029,2]
[328881757,1717953046697,-420.62036438,0.00029,2]
[328881763,1717953046747,-2301.10079766,0.00029,2]
[328881766,1717953046760,-1569.10228711,0.00029,2]
[328881771,1717953046804,-2392.63053086,0.00029,2]
[328881773,1717953046814,-900.0,0.00029,30]
[328881775,1717953046826,-2079.84420844,0.00029,2]
[328881805,1717953047136,-933.844304,0.00029,2]
[328881808,1717953047149,-489.94951296,0.00029,2]
[328881812,1717953047187,-666.79475184,0.00029,2]
[328881815,1717953047198,-393.84608816,0.00029,7]
[328881816,1717953047356,-2074.14341801,0.00029,7]
[328881817,1717953047369,-2532.01049383,0.00029,7]
[328881818,1717953047379,-732.25253567,0.00029,2]
[328881819,1717953047391,-756.5194968,0.00029,2]
[328881820,1717953047401,-150.0,0.00029,2]
[328881821,1717953047411,-1569.61688391,0.00029001,2]
[328881822,1717953047422,-226.65406987,0.00029014,30]
[328881823,1717953047432,-150.0,0.00029014,2]
[328881824,1717953047442,-150.0,0.00029023,2]
[328881825,1717953047453,-1381.24454942,0.00029028,2]
[328881826,1717953047465,-190.7489782,0.00029028,2]
[328881827,1717953047475,-166.11284733,0.0002903,2]
[328881828,1717953047485,-163.34669478,0.0002903,2]
[328881829,1717953047495,-614.05545164,0.0002903,2]
[328881830,1717953047505,-180.07880861,0.0002903,5]
[328881831,1717953047515,-1000.0,0.0002903,2]
[328881832,1717953047525,-3824.03803944,0.0002903,2]
[328881833,1717953047543,-165.11507634,0.000287,2]
[328881834,1717953047553,-734.81442202,0.0002903,2]
[328881835,1717953047574,-573.43013765,0.0002903,2]
[328881836,1717953047594,-354.37716682,0.0002903,2]
[328881837,1717953047994,-343.68,0.0002903,2]
[328881839,1717953048007,-1446.5731672,0.0002903,2]
[328881841,1717953048046,-143.67686687,0.0002903,2]
[328881842,1717953048058,-246.79715127,0.00029033,15]
[328881843,1717953048068,-150.0,0.0002904,2]
[328881844,1717953048079,-1571.99352762,0.00029044,2]
[328881845,1717953048091,-150.0,0.00029048,2]
[328881846,1717953048101,-150.0,0.00029054,2]
[328881847,1717953048112,-1057.39974904,0.00029057,2]
[328881848,1717953048122,-1571.99352762,0.00029059,2]
[328881849,1717953048132,-150.0,0.00029068,2]
[328881850,1717953048142,-1571.99352762,0.00029075,2]
[328881851,1717953048152,-500.0,0.00029077,3]
[328881852,1717953048162,-170.0,0.00029078,5]
[328881853,1717953048172,-150.0,0.00029082,2]
[328881854,1717953048182,-150.0,0.00029084,2]
[328881855,1717953048192,-500.0,0.00029086,3]
[328881856,1717953048204,-246.79715127,0.00029089,15]
[328881857,1717953048215,-1571.99352762,0.00029091,2]
[328881858,1717953048228,-150.0,0.00029092,2]
[328881859,1717953048239,-500.0,0.00029094,3]
[328881860,1717953048250,-691.0,0.000291,2]
[328881861,1717953048262,-160.0,0.000291,2]
[328881862,1717953048274,-267.2,0.000291,2]
[328881863,1717953048284,-1141.0,0.000291,17]
[328881864,1717953048295,-150.0,0.000291,6]
[328881865,1717953048307,-500.0,0.00029103,3]
[328881866,1717953048318,-1571.99352762,0.00029106,2]
[328881867,1717953048329,-301.25,0.00029106,2]
[328881868,1717953048341,-500.0,0.00029112,3]
[328881869,1717953048353,-180.18596454,0.00029115,2]
[328881870,1717953048364,-614.05545162,0.00029115,2]
[328881871,1717953048374,-4923.7605582,0.00029118,2]
[328881872,1717953048390,-11723.49065933,0.00029118,2]
[328881873,1717953048404,-1137.69529149,0.00029118,2]
[328881874,1717953048418,-1142.01333318,0.00029118,2]
[328881875,1717953048428,-199.297282,0.00029118,2]
[328881876,1717953048438,-574.4465868,0.00029118,2]
[328881877,1717953048452,-150.0,0.00029119,2]
[328881878,1717953048463,-500.0,0.00029121,3]
[328881879,1717953048473,-1571.99352762,0.00029122,2]
[328881880,1717953048483,-26313.68297621,0.00029123,7]
[328881881,1717953048496,-2416.61702379,0.00029123,7]
[328881882,1717953048507,-226.65406987,0.00029123,30]
[328881883,1717953048518,-150.0,0.00029127,2]
[328881884,1717953048529,-1576.4656845,0.00029128,2]
[328881885,1717953048540,-1421.11832597,0.00029128,2]
[328881886,1717953048550,-155.35592478,0.00029128,2]
[328881887,1717953048561,-4163.84145787,0.00029128,2]
[328881888,1717953048573,-459.03337979,0.00029128,2]
[328881889,1717953048605,-446.14741197,0.00029128,2]
[328881922,1717954233112,-3065.39010227,0.00017157,2]
[328881923,1717954233124,-751.9144439,0.00017158,2]
[328881924,1717954233134,-3937.3244904,0.0002,2]
[328881925,1717954233147,-13023.6755096,0.0002,2]
[328881926,1717954233160,-500.0,0.00022602,2]
[328881927,1717954233170,-500.0,0.00022602,2]
[328881928,1717954233180,-500.0,0.00022602,2]
[328881929,1717954233191,-4922.70982682,0.00022762,2]
[328881930,1717954233202,-300.0,0.00023698,2]
[328881931,1717954233212,-160.88,0.00024384,2]
[328881932,1717954233223,-241.726,0.00024477,2]
[328881933,1717954233234,-1524.945,0.00024477,2]
[328881934,1717954233244,-458.206,0.00024477,2]
[328881935,1717954233256,-1650.936,0.00024477,2]
[328881936,1717954233268,-1830.0,0.00024477,2]
[328881937,1717954233280,-1268.0,0.00024477,2]
[328881938,1717954233291,-441.0,0.00024477,2]
[328881939,1717954233305,-615.0,0.00024477,2]
[328881940,1717954233316,-296.13,0.00024831,2]
[328881941,1717954233327,-169.2124423,0.00025,2]
[328881942,1717954233339,-14470.49920023,0.00025,2]
[328881943,1717954233351,-155.0,0.00025,2]
[328881944,1717954233362,-154.56666579,0.00026105,2]
[328881945,1717954233374,-201.28287779,0.00026163,2]
[328881946,1717954233387,-150.29065208,0.00026399,2]
[328881947,1717954233398,-150.29065208,0.0002646,2]
[328881948,1717954233411,-151.26781796,0.00026599,2]
[328881949,1717954233420,-200.0,0.00026632,2]
[328881950,1717954233430,-663.44,0.00026634,2]
[328881951,1717954233442,-410.24,0.00026641,2]
[328881952,1717954233454,-250.0,0.00026647,2]
[328881953,1717954233465,-8149.71,0.0002665,2]
[328881954,1717954233476,-162.089,0.0002665,2]
[328881955,1717954233488,-250.0,0.00026676,2]
[328881956,1717954233500,-159.30660948,0.00026685,2]
[328881957,1717954233512,-150.0,0.00026694,2]
[328881958,1717954233522,-2318.96,0.00026715,2]
[328881959,1717954233533,-156.87,0.00026723,2]
[328881960,1717954233544,-156.87,0.0002679,2]
[328881961,1717954233557,-1371.38,0.00026803,2]
[328881962,1717954233568,-156.87,0.00026856,2]
[328881963,1717954233580,-167.76,0.00026874,2]
[328881964,1717954233591,-151.26781796,0.00026985,2]
[328881965,1717954233602,-199.01,0.00026995,2]
[328881966,1717954233612,-155.10720857,0.00027074,2]
[328881967,1717954233623,-2650.555143,0.00027089,2]
[328881968,1717954233634,-2641.925196,0.00027089,2]
[328881969,1717954233646,-156.221854,0.00027089,2]
[328881970,1717954233659,-180.851123,0.00027089,2]
[328881971,1717954233669,-2341.285768,0.00027089,2]
[328881972,1717954233680,-296.13,0.00027095,2]
[328881973,1717954233690,-264.45,0.00027106,2]
[328881974,1717954233701,-1000.0,0.00027203,2]
[328881975,1717954233711,-159.04218689,0.00027211,2]
[328881976,1717954233721,-157.58,0.00027381,2]
[328881977,1717954233732,-150.0,0.00027397,2]
[328881978,1717954233742,-2650.555143,0.00027428,2]
[328881979,1717954233752,-2641.925196,0.00027428,2]
[328881980,1717954233762,-156.221854,0.00027428,2]
[328881981,1717954233773,-2341.285768,0.00027428,2]
[328881982,1717954233784,-159.60127696,0.00027431,2]
[328881983,1717954233795,-150.29065208,0.00027447,2]
[328881984,1717954233806,-157.58,0.000275,2]
[328881985,1717954233816,-157.58,0.00027619,2]
[328881986,1717954233825,-264.45323394,0.00027672,2]
[328881987,1717954233835,-154.96284852,0.00027686,2]
[328881988,1717954233845,-160.14959941,0.00027712,2]
[328881989,1717954233856,-157.58,0.00027738,2]
[328881990,1717954233866,-158.82373381,0.00027739,2]
[328881991,1717954233877,-2650.555143,0.00027767,2]
[328881992,1717954233888,-2641.925196,0.00027767,2]
[328881993,1717954233899,-156.221854,0.00027767,2]
[328881994,1717954233911,-180.851123,0.00027767,2]
[328881995,1717954233922,-2341.285768,0.00027767,2]
[328881996,1717954233932,-167.0,0.00027785,2]
[328881997,1717954233942,-157.58,0.00027857,2]
[328881998,1717954233952,-266.10450733,0.000279,2]
[328881999,1717954233962,-341.11,0.00027971,2]
[328882000,1717954233972,-157.58,0.00027976,2]
[328882001,1717954233982,-162.089,0.00028049,2]
[328882002,1717954233993,-157.58,0.00028094,2]
[328882003,1717954234003,-2650.555143,0.00028105,2]
[328882004,1717954234015,-2641.925196,0.00028105,2]
[328882005,1717954234025,-156.221854,0.00028105,2]
[328882006,1717954234035,-2341.285768,0.00028105,2]
[328882007,1717954234045,-150.0,0.00028118,2]
[328882008,1717954234055,-154.96284852,0.00028182,2]
[328882009,1717954234065,-157.58,0.00028213,2]
[328882010,1717954234075,-171.41911186,0.00028236,2]
[328882011,1717954234086,-157.58,0.00028332,2]
[328882012,1717954234096,-150.0,0.00028356,2]
[328882013,1717954234107,-150.0,0.00028356,2]
[328882014,1717954234117,-150.0,0.00028356,2]